Cogmind - Beta 16.1 @@@ ROGUE MODE // 2026.02.26 @ 18:05:01 Player: parasect Result: Core destroyed Performance ------------- Evolutions (1) 500 Regions Visited (5) 1000 Robots Destroyed (97) 485 Value Destroyed (1746) 1746 Prototype IDs (43) 860 Alien Tech Used (0) 0 Bonus (280) 280 TOTAL SCORE: 4871 Bonus ------- High Alert Combat Kills 24 Follower Combat Kills 14 Aligned with FarCom 300 Friendly Fire -58 Cogmind --------- Core Integrity 0/400 Matter 99/300 Energy 251/265 System Corruption 2% Temperature Critical (656) Movement Walking (90) Location -9/Exiles Parts ------- > --- POWER (1) -------- Reinforced Ion Engine > --- PROPULSION (3) --- Light Treads Potential Leg Potential Leg > --- UTILITY (2) ------ Large Storage Unit Hardened Medium Armor Plating > --- WEAPON (3) ------- Heavy Assault Rifle Improved Assault Rifle Minigun > --- INVENTORY (15) --- Light Treads Light Treads Light Treads High-capacity Matter Pod (200) Core Shielding Hardened Medium Armor Plating Hardened Medium Armor Plating Rocket Launcher Mini Grenade Launcher Peak State ------------ > --- POWER ------------ Improved Ion Engine > --- PROPULSION ------- Light Treads Potential Leg Potential Leg > --- UTILITY ---------- Large Storage Unit Hardened Medium Armor Plating > --- WEAPON ----------- Heavy Assault Rifle Improved Assault Rifle Minigun > --- INVENTORY -------- Reinforced Ion Engine Fission Core Fission Core Light Treads Light Treads Light Treads Light Treads High-capacity Matter Pod Core Shielding Hardened Medium Armor Plating Hardened Medium Armor Plating Minigun Minigun Rocket Launcher Mini Grenade Launcher [Rating: 38] Favorites ----------- Power Improved Ion Engine Engine Improved Ion Engine Propulsion Light Treads Treads Light Treads Leg Aluminum Leg Utility Seismic Detector Device Seismic Detector Storage Large Storage Unit Protection Hardened Medium Armor Plating Weapon Heavy Assault Rifle Energy Gun Small Laser Ballistic Gun Heavy Assault Rifle Launcher Grenade Launcher Special Weapon Mining Laser Impact Weapon Maul Special Melee Weapon Datajack Build | -11 -10 -10 -9 -9 -9 ------- Run | Yrd Mat Min Mat Min Exi Slots Evolved 2 | . . . 2 . . Power . | . . . . . . Propulsion 1 | . . . 1 . . Utility . | . . . . . . Weapon 1 | . . . 1 . . Parts Attached 61 | 1 11 4 33 1 11 Power 6 | . . . 5 . 1 Engine 6 | . . . 5 . 1 Core . | . . . . . . Reactor . | . . . . . . Propulsion 18 | . 3 . 12 . 3 Treads 15 | . 2 . 12 . 1 Leg 3 | . 1 . . . 2 Wheel . | . . . . . . Hover . | . . . . . . Flight . | . . . . . . Utility 14 | 1 2 2 5 1 3 Device 4 | 1 . 2 1 . . Storage 4 | . 1 . 2 . 1 Processor . | . . . . . . Hackware . | . . . . . . Protection 6 | . 1 . 2 1 2 Artifact . | . . . . . . Weapon 23 | . 6 2 11 . 4 Energy Gun 1 | . . . 1 . . Energy Cannon . | . . . . . . Ballistic Gun 16 | . 4 1 8 . 3 Ballistic Cannon . | . . . . . . Launcher 3 | . 1 1 . . 1 Special Weapon 1 | . 1 . . . . Impact Weapon 1 | . . . 1 . . Slashing Weapon . | . . . . . . Piercing Weapon . | . . . . . . Special Melee Weapon 1 | . . . 1 . . Unidentified Prototypes 2 | . . 1 1 . . Parts Lost 9 | . 2 2 2 . 3 Power 2 | . . . 1 . 1 Propulsion 2 | . 2 . . . . Utility 1 | . . 1 . . . Weapon 4 | . . 1 1 . 2 Highest Loss Streak 2 | . 2 1 2 . 2 To Critical Strikes 2 | . . . . . 2 Average Backups 16 | 6 8 14 17 25 18 Power . | 1 . . 1 1 1 Propulsion 4 | 4 3 3 4 8 4 Utility 5 | . 2 5 6 8 6 Weapon 4 | 1 1 4 4 6 6 Tool/Special . | . . . . . . Unused Backups 40 | . 3 1 18 . 18 Power 3 | . . . . . 3 Propulsion 8 | . . . 2 . 6 Utility 23 | . 2 1 13 . 7 Weapon 6 | . 1 . 3 . 2 Tool/Special . | . . . . . . Average Slot Usage (%) 95 | . 99 99 99 100 82 Engine 11 | . 14 14 10 11 10 Treads 27 | . 6 28 32 33 28 Leg 4 | . 21 . . . 4 Device 9 | . 7 12 10 10 6 Storage 11 | . 14 14 11 11 10 Protection 2 | . 6 . . . 4 Energy Gun 3 | . 14 5 1 . . Ballistic Gun 23 | . 12 21 31 33 13 Peak Build Rating 38 | 7 8 14 20 22 38 Average Rating 14 | 6 7 8 14 20 19 On Entrance 11 | 6 7 8 8 20 20 Avg Prop Armor Cover (%) 6 | . . . . . 6 Naked Turns . | . . . . . . Heaviest Build 104 | 13 30 32 97 104 97 Greatest Support 60 | 20 40 40 60 60 60 Greatest Overweight (x) 1 | . 1 . 1 1 1 Average Overweight (x) . | . . . . 1 . Largest Inventory Capacity 25 | 8 15 15 25 25 25 Average Capacity 18 | 8 11 15 18 25 20 Most Carried 25 | 7 15 15 25 25 25 Average Carried 16 | 6 8 14 17 25 18 Final Capacity 25 | 8 15 15 25 25 15 Final Carried 25 | 5 15 15 25 25 9 Class Distribution -------------------- 42% | Scavenger-Gunner 30% | Mutant 13% | Scavenger-Mutant 5% | Scavenger-Tank 4% | Tank 3% | Gunner Dominant Class ---------------- Mutant | -10/Materials Mutant | -10/Mines Scavenger-Gunner | -9/Materials Scavenger-Gunner | -9/Mines Scavenger-Mutant | -9/Exiles Resources | -11 -10 -10 -9 -9 -9 ----------- Run | Yrd Mat Min Mat Min Exi Matter Collected 2784 | 235 267 144 1324 329 485 Remotely . | . . . . . . Salvage Created 2528 | 232 332 239 1495 154 76 Parts 187 | 15 32 17 114 8 1 Haulers Intercepted 6 | . 1 . 5 . . Recyclers Shooed 3 | . . 1 2 . . Parts Field Recycled . | . . . . . . Retrieved Matter . | . . . . . . Parts Self-Destructed . | . . . . . . Prevented . | . . . . . . Parts Restored . | . . . . . . Kills | -11 -10 -10 -9 -9 -9 ------- Run | Yrd Mat Min Mat Min Exi Combat Hostiles Destroyed 67 | . 13 10 36 3 5 Guns 43 | . 4 2 33 3 1 AOE 24 | . 9 8 3 . 4 Classes Destroyed 12 | 3 5 1 1 1 1 Worker 5 | 2 . . 3 . . Tunneler 8 | 5 1 . 1 1 . Hauler 6 | . 1 . 5 . . Recycler 5 | 1 . 1 2 1 . Operator 3 | . 3 . . . . Watcher 6 | . 2 . 4 . . Swarmer 33 | . 9 4 20 . . Grunt 20 | . 4 6 8 2 . Sentry 8 | . . . 8 . . Demolisher 1 | . . . . 1 . Zionite 1 | . . 1 . . . Assembled 4 | . . . . . 4 Best Kill Streak 7 | 4 6 5 7 2 4 Combat Bots Only 7 | . 6 4 7 2 4 Max Kills in Single Turn 3 | 1 2 3 3 1 2 Gunslinging 1 | . . . 1 . . Exploded 3 | . 2 3 3 . 2 Melee . | . . . . . . Uniques/NPCs Destroyed 1 | . . . . . 1 8R-AWN (-9/Exiles) Combat | -11 -10 -10 -9 -9 -9 -------- Run | Yrd Mat Min Mat Min Exi Hostile Shots Fired 267 | . 42 22 121 7 75 Missed 56 | . 10 7 27 2 10 Hits 211 | . 32 15 94 5 65 Projectile 211 | . 32 15 94 5 65 AOE 1 | . . . . 1 . Critical Strikes 28 | . 1 1 . . 26 Damage Taken 3055 | . 340 210 1152 90 1263 Core 474 | . 46 27 149 . 252 Absorbed by Shields . | . . . . . . Redirected to Shielding 2 | . 2 . . . . Regen/Repaired (Parts) 73 | . . . 73 . . Core Remaining (%) 85 | 100 . 70 . . . Volleys Fired 231 | 25 63 21 88 4 30 Largest 3 | 2 2 2 3 3 3 Hottest 100 | 60 100 60 80 71 73 Shots Fired 532 | 50 104 31 257 13 77 Gun 497 | 50 86 20 255 13 73 Cannon . | . . . . . . Launcher 28 | . 11 11 2 . 4 Special 7 | . 7 . . . . Kinetic 415 | 25 45 16 243 13 73 Thermal 89 | 25 48 4 12 . . Explosive 28 | . 11 11 2 . 4 Electromagnetic . | . . . . . . Robot Hit Streak 30 | 7 8 10 30 5 14 Robot Miss Streak 4 | 2 4 4 4 2 2 Penetration Max . | . . . . . . Secondary Targets 6 | . . . 6 . . Max Gunslinging Chain 1 | . . . 1 . . Shots Hit Robots 342 | 34 49 14 173 8 64 Core Hits 174 | 10 36 22 76 6 24 Critical Kills 2 | . . . 2 . . Critical Parts Destroyed 3 | . . . 2 . 1 Critical Strikes 5 | . . . 4 . 1 Destroy 5 | . . . 4 . 1 Melee Attacks 6 | . . . 2 . 4 Impact 2 | . . . 2 . . Slashing . | . . . . . . Piercing . | . . . . . . Sneak Attacks 4 | . . . . . 4 Combat Hostiles . | . . . . . . Follow-up Attacks . | . . . . . . Damage Inflicted 5935 | 330 975 811 2404 141 1274 Guns 4170 | 330 441 137 2180 125 957 Cannons . | . . . . . . Explosions 1643 | . 523 667 216 . 237 Melee . | . . . . . . Ramming 122 | . 11 7 8 16 80 Kinetic 3628 | 145 238 93 2070 125 957 Thermal 542 | 185 203 44 110 . . Explosive 1643 | . 523 667 216 . 237 Electromagnetic . | . . . . . . Impact . | . . . . . . Slashing . | . . . . . . Piercing . | . . . . . . Highest Corruption 2 | . . . 2 2 2 Average Corruption 2 | . . . 2 2 2 Corruption Purged . | . . . . . . Corruption Blocked . | . . . . . . Effects 42 | . . . 10 15 17 Message Errors 11 | . . . 3 3 5 Matter Fused 11 | . . . 2 3 6 Heat Flow Errors 8 | . . . 3 1 4 Energy Discharges 4 | . . . . 3 1 Data Loss (minor) 2 | . . . . 1 1 Data Loss (major) 1 | . . . . 1 . Misfires 2 | . . . . 2 . Alerts 2 | . . . 2 . . Weapon Failures 1 | . . . . 1 . Overload Shots . | . . . . . . Overflow Damage 50 | . 39 1 10 . . Projectiles . | . . . . . . Explosions 50 | . 39 1 10 . . Melee . | . . . . . . Knockbacks 2 | . . . . . 2 Impact 2 | . . . . . 2 Kinetic . | . . . . . . Secondary . | . . . . . . Self-Inflicted Damage 152 | . 52 25 43 . 32 Shots 8 | . 3 2 2 . 1 Rammed 7 | . 1 2 2 2 . Targets Rammed 25 | . 4 2 3 3 13 Kicked 16 | . 3 . . . 13 Crushed 2 | . . . 1 1 . Highest Temperature 656 | 60 60 22 279 171 656 Average Temperature 60 | 24 20 11 39 62 168 Received Heat Transfer 552 | . 54 102 366 30 . Effects 8 | . . . . . 8 Shutdowns 1 | . . . . . 1 Energy Bleed 2 | . . . . . 2 Interference 2 | . . . . . 2 Matter Decay 1 | . . . . . 1 Damage (minor) 1 | . . . . . 1 Damage (core) 1 | . . . . . 1 Siege Activations . | . . . . . . Martial Activations . | . . . . . . Shielding Activations . | . . . . . . Robots Disrupted . | . . . . . . Combat Hostiles . | . . . . . . Robots Corrupted . | . . . . . . Combat Hostiles . | . . . . . . Parts Fried . | . . . . . . Impact Corruptions . | . . . . . . Robots Melted . | . . . . . . Combat Hostiles . | . . . . . . Parts Melted . | . . . . . . Heat Transferred 1250 | 425 475 100 250 . . Parts Sabotaged . | . . . . . . Parts Stolen . | . . . . . . Parts Stripped . | . . . . . . Power Chain Reactions . | . . . . . . Alert | -11 -10 -10 -9 -9 -9 ------- Run | Yrd Mat Min Mat Min Exi Maximum Alert Level 2 | . 1 . 2 . . Low Security (%) 77 | 100 74 100 59 100 . Level 1 16 | . 25 . 26 . . Level 2 5 | . . . 13 . . Level 3 . | . . . . . . Level 4 . | . . . . . . Level 5 . | . . . . . . High Security . | . . . . . . Max Security . | . . . . . . Peak Influence 443 | 15 276 159 443 153 . Initial 123 | . . 83 7 123 . Average 107 | 4 117 62 166 16 . Influence Increases 2211 | 40 533 364 1186 88 . Destroy 0b10 Robot/C 1280 | . 260 240 720 60 . Destroy 0b10 Robot/NC 165 | 40 35 5 75 10 . Destroy Leader 304 | . 66 50 178 10 . Allied During Kill 11 | . . 11 . . . Successful Hack 86 | . 37 . 41 8 . Select Force Hacks 120 | . 60 . 60 . . Disable Machine 15 | . 15 . . . . Destroy Structure 140 | . 60 58 22 . . Lose Combat Pursuer 90 | . . . 90 . . Influence Decreases 2211 | 40 319 557 890 405 . Entered New Map 339 | . . 131 14 194 . Time Decay 1414 | 40 299 406 571 98 . Lost Part 60 | . 20 20 20 . . Lost Ally 10 | . . . 10 . . Purge Threat 388 | . . . 275 113 . Squads Dispatched 8 | . 5 . 3 . . Investigation 4 | . 2 . 2 . . Extermination . | . . . . . . Reinforcement 3 | . 3 . . . . Assault 1 | . . . 1 . . Garrison . | . . . . . . Intercept . | . . . . . . Searches Triggered . | . . . . . . Construction Impeded . | . . . . . . Haulers Reinforced . | . . . . . . Active Scanning Responses . | . . . . . . Cargo Convoy Interrupts . | . . . . . . Stealth | -11 -10 -10 -9 -9 -9 --------- Run | Yrd Mat Min Mat Min Exi Distress Signals 8 | . 2 1 5 . . Communications Jammed . | . . . . . . Distress Signals . | . . . . . . Times Spotted 102 | . 26 12 51 5 8 Peak Tracking Total 12 | . 4 3 10 7 12 Tactical Retreats 6 | . . . 3 1 2 Traps | -11 -10 -10 -9 -9 -9 ------- Run | Yrd Mat Min Mat Min Exi Traps Triggered 2 | . 1 . 1 . . Indirectly . | . . . . . . Trap Hack Attempts 42 | . . . 42 . . Triggered . | . . . . . . Disarmed . | . . . . . . Reprogrammed 3 | . . . 3 . . Reused . | . . . . . . Traps Extracted . | . . . . . . Installed . | . . . . . . Triggered . | . . . . . . Machines | -11 -10 -10 -9 -9 -9 ---------- Run | Yrd Mat Min Mat Min Exi Machines Disabled 7 | . 1 . . . 6 Max in Single Turn 2 | . 1 . . . 2 Machines Repaired . | . . . . . . Machines Dismantled . | . . . . . . Machines Sabotaged . | . . . . . . Overloaded Fab Kills . | . . . . . . Hacking | -11 -10 -10 -9 -9 -9 --------- Run | Yrd Mat Min Mat Min Exi Machines Accessed 27 | . 8 1 15 1 2 Terminals 17 | . 6 . 10 1 . Fabricators . | . . . . . . Repair Stations 2 | . . . 2 . . Recycling Units 4 | . 2 . 2 . . Scanalyzers 1 | . . . 1 . . Garrison Access . | . . . . . . Total Hacks 73 | . 18 1 49 3 2 Successful 43 | . 10 1 28 2 2 Failed 30 | . 8 . 21 1 . Catastrophic 7 | . 2 . 5 . . Database Lockouts . | . . . . . . Manual 49 | . 19 . 26 3 1 Terminals 57 | . 16 . 38 3 . Fabricators . | . . . . . . Repair Stations 5 | . . . 5 . . Recycling Units 4 | . 2 . 2 . . Scanalyzers 4 | . . . 4 . . Garrison Access . | . . . . . . Terminal Hacks 24 | . 6 1 13 2 2 Record 1 | . . . . . 1 Part Schematic 2 | . 2 . . . . Robot Analysis 6 | . 4 . 2 . . Prototype ID Bank 3 | . . . 3 . . Open Door 1 | . . 1 . . . Terminal Index 1 | . . . 1 . . Unreport Threat 4 | . . . 2 2 . Locate Traps 2 | . . . 2 . . Maintenance Status 1 | . . . 1 . . Hauler Manifests 1 | . . . 1 . . Registered Components 1 | . . . 1 . . Proto ID Catalog 1 | . . . . . 1 Fabricator Hacks . | . . . . . . Repair Station Hacks 3 | . . . 3 . . Scan Component 2 | . . . 2 . . Repair 1 | . . . 1 . . Recycling Unit Hacks . | . . . . . . Scanalyzer 4 | . . . 4 . . Insert Component 1 | . . . 1 . . Analyze 1 | . . . 1 . . Retrieve Study 2 | . . . 2 . . Garrison Access Hacks . | . . . . . . Unauthorized Hacks 12 | . 4 . 8 . . Terminals 8 | . 2 . 6 . . Assimilate 1 | . . . 1 . . Botnet 4 | . 1 . 3 . . Disrupt 1 | . . . 1 . . Operators 2 | . 1 . 1 . . Fabricators . | . . . . . . Repair Stations . | . . . . . . Recycling Units 4 | . 2 . 2 . . Tunnel 4 | . 2 . 2 . . Scanalyzers . | . . . . . . Garrison Access . | . . . . . . Data Cores Recovered . | . . . . . . Used . | . . . . . . Hacking Detections 20 | . 6 . 13 1 . Full Trace Events . | . . . . . . Feedback Events . | . . . . . . Feedback Blocked . | . . . . . . Robot Schematics Acquired . | . . . . . . Robots Built . | . . . . . . Authchips . | . . . . . . Time . | . . . . . . Total Robot Build Rating . | . . . . . . Part Schematics Acquired 3 | . 2 . 1 . . Parts Built . | . . . . . . Authchips . | . . . . . . Time . | . . . . . . Total Part Build Rating . | . . . . . . Part Studies Acquired 2 | . . . 2 . . Parts Repaired 1 | . . . 1 . . Time 13 | . . . 13 . . Parts Recycled . | . . . . . . Recycled Matter . | . . . . . . Retrieved Matter . | . . . . . . Retrieved Components . | . . . . . . Parts Scanalyzed 1 | . . . 1 . . Part Schematics Acquired 1 | . . . 1 . . Parts Damaged . | . . . . . . Bothacking | -11 -10 -10 -9 -9 -9 ------------ Run | Yrd Mat Min Mat Min Exi Used RIF Installer . | . . . . . . Robots Hacked 4 | . . . . . 4 Non-combat 3 | . . . . . 3 Combat 1 | . . . . . 1 Robot Hacks Applied 4 | . . . . . 4 parse_system 4 | . . . . . 4 Relay Couplers Released . | . . . . . . Fabnet Peak Effective % . | . . . . . . Robots Rewired . | . . . . . . Allies Hacked . | . . . . . . Hacks Repelled . | . . . . . . Allies | -11 -10 -10 -9 -9 -9 -------- Run | Yrd Mat Min Mat Min Exi Total Allies 4 | . . 2 1 1 . Largest Group 2 | . . 2 1 1 . Highest-Rated Group 42 | . . 42 31 31 . Highest-Rated Ally 31 | . . 31 31 31 . Total Orders 2 | . . 2 . . . EXPLORE 1 | . . 1 . . . RETURN 1 | . . 1 . . . Ally Attacks 18 | . . 10 . 8 . Total Damage 180 | . . 96 . 84 . Kills 3 | . . 2 . 1 . Allies Corrupted 1 | . . . 1 . . Allies Melted . | . . . . . . Intel | -11 -10 -10 -9 -9 -9 ------- Run | Yrd Mat Min Mat Min Exi Active Infowar (turns) 6064 | 33 561 943 2471 1024 1032 Seismic 6064 | 33 561 943 2471 1024 1032 Robot Analysis Total 6 | . 4 . 2 . . Derelict Logs Recovered 2 | . . 1 . 1 . Drone Launches 1 | . . 1 . . . Drone Recoveries 1 | . . 1 . . . Exploration | -11 -10 -10 -9 -9 -9 ------------- Run | Yrd Mat Min Mat Min Exi Turns Passed 7678 | 148 1090 1080 2560 1040 1760 Spaces Moved 3843 | 53 579 587 1179 509 936 Core . | . . . . . . Treads 3143 | . 143 587 1179 509 725 Legs 700 | 53 436 . . . 211 Wheels . | . . . . . . Hover . | . . . . . . Flight . | . . . . . . Fastest Speed 90 | 120 120 160 160 200 90 Average Speed 168 | 120 148 160 172 200 164 Slowest Speed 200 | 120 190 160 200 200 200 Overloaded Moves . | . . . . . . Propulsion Burnouts . | . . . . . . Robots Hopped . | . . . . . . Potential Cave-ins . | . . . . . . Cave-ins Triggered . | . . . . . . Exploration Rate (%) 75 | 3 97 93 89 97 72 Regions Visited 5 Branch Regions 3 Pre-discovered Areas 6 | . 2 . 2 1 1 Known Exits Taken . | . . . . . . Unknown Exits Taken 5 | 1 1 1 1 1 . Scrap Searched 2 | . . 1 . 1 . Spaces Dug 17 | . 15 . 2 . . Terrain Destroyed 192 | . 70 75 19 . 28 Melee 2 | . . . 2 . . Projectile 6 | . 6 . . . . AOE 184 | . 64 75 17 . 28 Terrain Rammed . | . . . . . . Walls Destroyed . | . . . . . . Machines Disabled . | . . . . . . Actions | -11 -10 -10 -9 -9 -9 --------- Run | Yrd Mat Min Mat Min Exi Total 4652 | 93 694 693 1541 520 1111 Wait 197 | 12 8 66 71 1 39 Move 3838 | 52 578 586 1178 508 936 Hop . | . . . . . . Pick Up 103 | 1 15 2 48 1 36 Fast Attach 14 | 1 3 2 4 . 4 Attach 17 | . 2 2 7 . 6 Detach 4 | . 1 . 1 . 2 Swap 75 | . 14 9 44 2 6 Drop 100 | 2 6 3 53 1 35 Fire 231 | 25 63 21 88 4 30 Melee 6 | . . . 2 . 4 Ram . | . . . . . . Kick 16 | . 3 . . . 13 Crush 9 | . 1 2 3 3 . Escape Stasis . | . . . . . . Rewire . | . . . . . . Trap 42 | . . . 42 . . Miscellaneous . | . . . . . . Route ------- -11/Scrapyard -10/Materials (discovered 4 exits: *Mat x3 / *Min) -10/Mines (discovered 3 exits: *Mat x2 / *Sub) -9/Materials (discovered 4 exits: [*Mat x3] / *Min) -9/Mines (discovered 3 exits: [*Mat x2] / *Exi) -9/Exiles (discovered 2 exits: [*Min x2]) History --------- Turn | Location | Event 10 | -11/Scrapyard | Discovered new exit (range 2) 149 | -11/Scrapyard | Entered Materials 307 | -10/Materials | Build established: Mutant 311 | -10/Materials | Discovered new exit (range 13) 445 | -10/Materials | Discovered new exit (range 15) 632 | -10/Materials | Discovered new exit (range 16) 1136 | -10/Materials | Discovered new exit (range 4) 1239 | -10/Materials | Entered Mines 1525 | -10/Mines | Found the Drone Emporium 1535 | -10/Mines | Found Prototype Device 1535 | -10/Mines | Identified Thief Drone Bay 1539 | -10/Mines | Discovered new exit (range 22) 1566 | -10/Mines | Discovered new exit (range 59) 1931 | -10/Mines | Identified exit to Subcaves 2319 | -10/Mines | Entered Materials 2319 | -9/Materials | Accompanied by 1 ally 2319 | -9/Materials | Evolved 2 slots: Propulsion x1, Weapon x1 2324 | -9/Materials | Led the pair of lost Derelicts to an unsafe place 2397 | -9/Materials | Discovered new exit (range 16) 2945 | -9/Materials | Build established: Scavenger-Gunner 3626 | -9/Materials | Repaired Lgt. Treads+ 3842 | -9/Materials | Discovered new exit (range 9) 3855 | -9/Materials | Destroyed 7 combat bots 4319 | -9/Materials | First assault squad dispatched 4497 | -9/Materials | Discovered new exit (range 8) 4749 | -9/Materials | Discovered new exit (range 3) 4879 | -9/Materials | Entered Mines 4979 | -9/Mines | Discovered new exit (range 10) 5068 | -9/Mines | Received a Mining Laser from a helpful Derelict 5246 | -9/Mines | Assembled infested the area 5458 | -9/Mines | Received a Rocket Launcher from a helpful Derelict 5550 | -9/Mines | Discovered new exit (range 10) 5829 | -9/Mines | Deemed a non-threat by the Exiles lab entrance 5829 | -9/Mines | Discovered new exit (range 5) 5919 | -9/Mines | Entered Exiles 5996 | -9/Exiles | Discovered new exit (range 15) 6077 | -9/Exiles | Met 8R-AWN 6116 | -9/Exiles | Met EX-HEX 6171 | -9/Exiles | Met EX-BIN 6195 | -9/Exiles | Aligned with FarCom system 6197 | -9/Exiles | Given EX-Vault access code 6243 | -9/Exiles | Opened EX-Vault 6250 | -9/Exiles | Build established: Scavenger-Mutant 6259 | -9/Exiles | Found Potential Leg 6262 | -9/Exiles | Found Potential Leg 6299 | -9/Exiles | Warned to stay clear of 0b10 Research branches 6363 | -9/Exiles | Met EX-DEC 6371 | -9/Exiles | Learned location of Zion (-6) 6907 | -9/Exiles | Discovered new exit (range 12) 7246 | -9/Exiles | Build established: Scavenger-Tank 7503 | -9/Exiles | Attacked by the Exiles 7619 | -9/Exiles | Core integrity fell below 50% 7670 | -9/Exiles | Build established: Tank 7673 | -9/Exiles | Core integrity fell below 20% 7677 | -9/Exiles | Destroyed 8R-AWN 7680 | -9/Exiles | Core destroyed Last Messages --------------- 07659_ Penetrated by HV Slug. 07659_ HV Slug penetrates Earth. 07659_ Penetrated by HV Slug. 07659_ HV Slug penetrates Earth. 07662_ The unstable cave ceiling collapses. 07663_ Penetrated by HV Slug. 07663_ HV Slug penetrates Earth. 07663_ Penetrated by HV Slug. 07670_ Overheating: Potential Leg damaged (-172). 07671_ 8R-AWN suffers critical hit (Destroy). 07671_ Destroyed AS-neutralizer No. 17b. 07672_ Penetrated by HV Slug. 07674_ Power failure, Rnf. Ion Engine shutdown. 07676_ Penetrated by HV Slug. 07677_ Overheating: Energy bleed (-26). 07677_ 8R-AWN destroyed. 07678_ System corrupted: Heat flow error (+286). 07679_ Overheating: Matter decay (-33). 07680_ Overheating: Core damaged (-80). Map ----- +----------------------------------------------------+ | ?????????????????????????????????????????????????? | | ?????????????????????????????????????????????????? | | ?????????????????????????????????????????????????? | | ?????????????????????????????????????????????????? | | ?????????????????????????????????????????????????? | | ???????#####?????????????????????????????????????? | | ??????## ##????????????????????????????????????? | | ??????# #????????????????????????????????????? | | ??????# < #????????????????????????????????????? | | ??????# ###??????????????????????????????????? | | ??????# #??????????????????????????????????? | | ??????# #???????????????????????????????????? | | ???????# = !#???????????????????????????????????? | | ???????# ##??????????????????????????????????? | | ???????## ! #????????????#######???????????????? | | ????????# [ #######??????# ! "#???????????????? | | ????????# !![= #""##?????# "#???????????????? | | ????????## / ! #?????# #???????????????? | | ?????????##" / ##???## ""#????????????#### | | ?????????#"" #####" ""#???????????? "" | | ?????????#### ##" ""#????????????" "" | | ????????????## #"" ###????????????" | | ?????????????#"## #?????????????"" | | ?????????????####### ##????????????"" | | ???????????????????### ###?????????? " | | ?????????????########" %%@ ; ?????" " | | ????????? " !! %% ##??????????# # | | ?????????????#! %%%; # ###???### # | | ?????????????#! %!"## ""#####X# # | | ?????????????#! !##?## | | ?????????????# """" #;#???# | | ?????????????########## #???## # | | ??????????????????????# #????? # % | | ??????????????????????# #?????? * | | ??????????????????????# #?????? # | | ??????????????????????# #???????###### | | ??????????????????????# #??????????####" | | ??????????????????????? ??????????????#""" | | ??????????????????????? ?????????????##" | | ??????????????????????? ?????????????#"" | | ??????????????????????? ????????????##"" | | ??????????????????????? ????????????#""" | | ??????????????????????? ????????????#""" | | ??????????????????????? ????????????#"" | | ????????????????????????????????????#""" | | ????????????????????????????????????#"" | | ????????????????????????????????????##"" | | ?????????????????????????????????????#"""" | | ?????????????????????????????????????## | | ??????????????????????????????????????#" | +----------------------------------------------------+ Best States ------------- Heat Dissipation 28 Energy Generation 12 Energy Capacity 265 Matter Stores 300 Matter Capacity 300 Sight Range 16 Terrain Scan Density 10 Armor Coverage 225 Core Shielding 20 Evasion (%) 57 Recoil Reduction 3 Item Schematics ----------------- Hcp. Storage Unit | -10/Materials | Hacked Huge Storage Unit | -10/Materials | Hacked Hacking Suite | -9/Materials | Scanalyzed Robot Schematics ------------------ None Fabricated ------------ Nothing Repaired ---------- Lgt. Treads | 47% | -9/Materials Studied --------- Lgt. Treads | -9/Materials | Hacked Hvy. Assault Rifle | -9/Materials | Hacked Alien Tech Used ----------------- None Achievements -------------- None Challenges ------------ None Game ------ Seed HelicalWeaponTriangulator Manual? 0 Play Time 00:51:24 Cumulative 124.6 hours Start 2026.02.26 @ 17:12:11 End 2026.02.26 @ 18:05:01 Sessions 1 Manual Loads 0 Difficulty Rogue Special Mode None Game No. 99 Rogue 99 Adventurer 0 Explorer 0 Win Type - Total 14 Types 11/0/1/1/0/0/0/1/0/0 Lore% 54 Gallery% 54 Achievement% 49 Wizard Run 0 Options --------- Layout 2 ASCII 0 Keyboard 1 Movement Numpad Keybinds 0 Fullscreen 2 Font 24/Terminus Map View 50x44 Zoom Use 0% Tactical HUD 1 Map Filters NONE Filters NONE Steam 1 RUN: 2286f19b-4f88-43cc-8d8b-87b21730760f